bitfinex-derivatives/quotes_ETHF0:USTF0_20251117
["timestamp","ask_amount","ask_price","bid_price","bid_amount"]
[1763405987838,0.7759,3027.0,3026.5,3.2078]
[1763405988138,1.273,3026.6,3026.5,3.2078]
[1763405988335,0.7759,3027.0,3026.0,0.00308562]
[1763405988336,1.273,3026.3,3026.2,3.2078]
[1763405988549,0.7759,3026.4,3026.2,3.2078]
[1763405993046,0.7759,3027.0,3026.2,3.2078]
[1763405993247,0.7759,3027.0,3026.0,0.00308562]
[1763405993248,0.7759,3027.0,3026.6,3.2078]
[1763405997039,0.7218,3026.5,3026.3,3.2078]
[1763405997440,0.7218,3026.5,3026.0,0.00308562]
[1763405997441,1.2147,3026.1,3026.0,0.00308562]
[1763406000441,1.9365,3025.5,3025.4,3.2078]
[1763406000642,0.7218,3025.5,3025.4,3.2078]
[1763406001346,1.9365,3025.5,3025.4,3.2078]
[1763406001534,0.7218,3025.5,3025.4,3.21115327]
[1763406002040,0.00495925,3025.8,3025.4,3.21115327]
[1763406002041,0.00495925,3025.8,3025.4,10.09969147]
[1763406002247,0.00495925,3025.8,3025.4,4.09969147]
[1763406002437,0.00495925,3025.8,3025.4,4.10019488]
[1763406002639,0.00495925,3025.8,3025.5,6.88904161]
[1763406002939,1.72578893,3027.2,3025.4,6.51595327]
[1763406002940,0.00366416,3027.6,3025.9,3.2078]
[1763406003146,1.2147,3027.4,3026.9,3.2078]
[1763406003342,0.7218,3027.0,3026.7,0.88864317]
[1763406003546,0.00366416,3027.6,3026.9,3.2078]
[1763406003736,0.7218,3027.0,3026.9,3.2078]
[1763406004134,1.9365,3027.0,3026.6,0.00495925]
[1763406004335,1.2147,3026.7,3026.6,0.00495925]
[1763406004641,0.7218,3027.0,3026.6,0.00495925]
[1763406005235,1.2147,3026.7,3026.6,0.00495925]
[1763406005431,0.7218,3027.0,3026.6,0.00495925]
[1763406005631,0.7218,3027.0,3026.9,3.2078]
[1763406006937,0.00495925,3027.3,3026.9,3.2078]
[1763406007138,0.00495925,3027.3,3027.2,0.88931549]
[1763406007535,0.00495925,3027.3,3027.1,0.88931549]
[1763406008037,0.00495925,3027.3,3026.9,4.09711549]
[1763406008241,0.7218,3027.0,3026.9,4.09711549]
[1763406008443,0.7218,3027.0,3026.9,3.2078]
[1763406008843,1.9365,3027.0,3026.9,3.2078]
[1763406010452,1.2147,3026.7,3026.6,0.00495925]
[1763406010648,6.7218,3027.0,3026.5,3.2078]
[1763406010649,1.2147,3026.6,3026.5,3.2078]
[1763406010845,0.7218,3025.8,3025.5,3.2078]
[1763406011150,0.7218,3025.8,3025.4,0.00335327]
[1763406011151,0.7218,3025.8,3025.4,3.21115327]
[1763406011652,3.9296,3025.8,3025.4,0.00335327]
[1763406012045,1.2147,3025.5,3025.4,0.00335327]
[1763406012248,0.7218,3025.2,3024.6,3.2078]
[1763406012849,0.72675925,3025.8,3025.0,4.09711549]
[1763406013056,0.72675925,3025.8,3025.1,3.2078]
[1763406013243,1.9365,3025.2,3025.1,0.00330501]
[1763406013648,0.7218,3025.2,3025.1,0.00330501]
[1763406014147,3.2078,3025.4,3025.1,0.00330501]
[1763406014538,0.7298305,3025.8,3025.1,3.21110501]
[1763406014738,0.7298305,3025.8,3025.7,3.2078]
[1763406014947,0.0080305,3025.8,3025.7,3.2078]
[1763406015352,0.7298305,3025.8,3025.7,3.2078]
[1763406015551,0.7298305,3025.8,3025.3,3.2078]
[1763406016146,1.9365,3025.2,3025.1,0.00330501]
[1763406016862,1.9365,3025.2,3025.1,5.01e-06]
[1763406018354,0.7218,3025.2,3025.1,5.01e-06]
[1763406018755,1.9565,3025.2,3025.1,5.01e-06]
[1763406019453,0.7218,3025.2,3025.1,5.01e-06]
[1763406019643,1.9565,3025.2,3025.1,5.01e-06]
[1763406021644,7.9565,3025.2,3025.1,5.01e-06]
[1763406022549,1.9565,3025.2,3025.1,5.01e-06]
[1763406023354,0.7218,3025.2,3025.1,5.01e-06]
[1763406023652,0.0080305,3025.8,3025.1,9.30560501]
[1763406023851,3.2078,3027.5,3025.7,3.2078]
[1763406024047,3.2078,3027.5,3026.5,3.2078]
[1763406024347,3.2078,3027.5,3026.9,3.2078]
[1763406024550,3.2078,3028.1,3027.4,3.2078]
[1763406024748,0.0090113,3028.1,3027.9,3.2078]
[1763406025546,0.0346,3028.7,3027.9,3.2078]
[1763406025752,0.0346,3028.7,3028.2,3.2078]
[1763406026547,0.0372221,3028.7,3028.6,3.2078]
[1763406026749,4.36708401,3030.4,3028.6,3.2078]
[1763406027054,0.7091,3031.0,3029.7,3.2078]
[1763406027247,3.2078,3030.9,3030.0,3.2078]
[1763406027453,3.2078,3030.9,3028.8,40.8]
[1763406027454,3.2078,3031.0,3030.5,3.2078]
[1763406027648,3.2078,3030.6,3030.1,3.2078]
[1763406027859,3.211909,3030.6,3030.1,0.00351301]
[1763406028151,0.004109,3030.6,3030.1,3.21131301]
[1763406028944,0.004109,3030.6,3030.5,3.2078]
[1763406029144,0.004109,3030.6,3030.1,3.21131301]
[1763406029356,0.004109,3030.6,3030.1,0.00351301]
[1763406030157,3.2078,3030.3,3030.1,0.00351301]
[1763406030452,3.2078,3030.3,3029.7,3.2078]
[1763406030453,3.2078,3030.3,3028.8,3.2078]
[1763406030649,3.2078,3029.5,3028.8,3.2078]
[1763406031557,3.2078,3029.5,3028.8,3.21553337]
[1763406031755,0.6783,3029.6,3028.8,3.21553337]
[1763406031953,3.2078,3030.0,3028.8,0.00773337]
[1763406032159,3.8861,3029.6,3028.8,0.00773337]
[1763406032363,0.6783,3029.6,3028.8,0.00773337]
[1763406032563,0.6783,3029.6,3029.0,3.2078]
[1763406032858,3.2078,3029.4,3029.0,3.2078]
[1763406034052,3.2078,3029.4,3028.8,0.00773337]
[1763406034255,0.6783,3028.8,3028.3,3.2078]
[1763406034458,3.2078,3028.4,3027.7,3.2078]
[1763406034663,3.8861,3028.0,3027.1,3.2078]
[1763406035152,3.8861,3028.0,3026.6,3.2078]
[1763406035356,3.8861,3028.0,3027.0,0.00494992]
[1763406035357,0.00494992,3027.6,3027.0,0.00494992]
[1763406035751,3.21274992,3027.6,3027.0,0.00494992]
[1763406035952,3.21274992,3027.6,3027.1,3.2078]
[1763406036664,0.00292215,3028.0,3027.2,3.3032]
[1763406036869,0.68122215,3028.0,3027.5,3.2078]
[1763406037253,0.68122215,3028.0,3027.1,3.2078]
[1763406037556,0.68122215,3028.0,3027.5,3.2078]
[1763406037956,0.68122215,3028.0,3027.4,3.2078]
[1763406038364,0.68122215,3028.0,3027.0,0.00494992]
[1763406038768,0.68122215,3028.0,3027.3,3.2078]
[1763406039063,0.00292215,3028.0,3027.2,3.2078]
[1763406039260,0.00292215,3028.0,3027.8,3.2078]
[1763406039558,0.00292215,3028.0,3027.9,3.2078]
[1763406039765,0.6783,3028.8,3027.9,3.2078]
[1763406039957,0.6783,3028.8,3028.3,3.2078]
[1763406040355,3.2078,3028.6,3028.1,3.2078]
[1763406040664,3.21156691,3028.6,3027.7,3.2078]
[1763406040873,0.6783,3028.0,3027.3,3.2078]
[1763406041157,0.00376691,3028.6,3027.7,3.2078]
[1763406041860,0.00376691,3028.6,3028.1,3.2078]
[1763406042568,0.00376691,3028.6,3028.5,3.2078]
[1763406042757,3.8861,3029.6,3028.5,3.2078]
[1763406042957,3.8861,3029.6,3028.9,3.2078]
[1763406043260,0.6783,3029.6,3029.0,3.2078]
[1763406043465,3.2078,3030.0,3029.4,3.2078]
[1763406043668,3.21203395,3030.0,3029.4,0.0030414]
[1763406043962,3.8861,3029.6,3029.4,0.00799132]
[1763406044562,9.8861,3029.6,3029.4,0.00799132]
[1763406044762,9.8861,3029.6,3028.9,3.2078]
[1763406044763,3.8861,3029.6,3028.9,3.2078]
[1763406045659,3.8861,3029.6,3028.9,3.21627726]
[1763406045960,0.6783,3029.6,3028.9,3.21627726]
[1763406046362,3.2078,3029.5,3028.9,3.21627726]
[1763406046564,0.6783,3029.6,3028.9,3.21627726]
[1763406047459,3.2078,3029.4,3028.9,3.21627726]
[1763406047657,3.2078,3029.4,3028.9,0.00847726]
[1763406048056,0.6783,3029.6,3028.9,0.00847726]
[1763406048565,0.6783,3029.6,3029.3,3.2078]
[1763406048766,0.6783,3029.6,3028.9,3.21627726]
[1763406049067,0.00918387,3030.0,3029.3,3.2078]
[1763406050169,0.6783,3029.6,3028.9,3.21627726]
[1763406050867,0.6783,3029.6,3029.3,3.2078]
[1763406052566,0.00918387,3030.0,3029.3,3.2078]
[1763406052766,0.00918387,3030.0,3029.7,3.2078]
[1763406052965,4.6533,3031.2,3029.7,3.2078]
[1763406052966,0.6783,3031.2,3029.7,3.2078]
[1763406053170,0.6783,3031.2,3030.6,3.2078]
[1763406054066,0.68624574,3031.2,3030.6,3.21274992]
[1763406054476,0.00794574,3031.2,3031.0,3.2078]
[1763406054967,5.04538401,3032.4,3031.1,9.2984]
[1763406054968,0.6783,3032.4,3031.1,9.2984]
[1763406055166,3.8861,3032.4,3031.3,3.2078]
[1763406055468,0.6783,3032.4,3031.7,3.2078]
[1763406055671,3.2078,3032.8,3032.2,3.2078]
[1763406055870,3.21514435,3032.8,3032.2,0.00919124]
[1763406056066,3.21514435,3032.8,3032.3,3.2078]
[1763406056267,3.21514435,3032.8,3032.2,0.00919124]
[1763406056667,3.21514435,3032.8,3032.3,3.2078]
[1763406056870,3.21514435,3032.8,3032.2,0.00919124]
[1763406056871,0.00734435,3032.8,3032.7,3.2078]
[1763406057167,3.2078,3033.8,3032.7,3.2078]
[1763406057368,3.2078,3033.2,3032.7,3.2078]
[1763406057573,3.2078,3034.3,3033.1,3.2078]
[1763406057773,0.6783,3034.4,3033.7,3.2078]
[1763406057969,0.68244706,3034.4,3034.1,3.2078]
[1763406058172,2.35418893,3036.0,3034.2,6.0]
[1763406058173,3.2078,3035.6,3034.2,6.0]
[1763406058371,3.2078,3035.6,3034.7,3.2078]
[1763406058671,3.2078,3035.6,3034.1,44.0944]
[1763406058672,0.6284,3036.0,3035.2,3.2078]
[1763406059066,3.8362,3036.0,3035.2,3.2078]
[1763406059279,3.2078,3035.6,3035.3,0.00494135]
[1763406059776,9.2078,3035.6,3035.3,0.00494135]
[1763406060169,3.84022589,3036.0,3035.3,0.00494135]
[1763406060570,3.2078,3035.6,3035.3,0.00494135]
[1763406061674,0.63242589,3036.0,3035.3,0.00494135]
[1763406061969,3.84022589,3036.0,3035.3,0.00494135]
[1763406062975,0.63242589,3036.0,3035.6,3.2078]
[1763406063176,0.63242589,3036.0,3035.7,3.2078]
[1763406063177,0.00402589,3036.0,3035.7,3.2078]
[1763406063379,0.00402589,3036.0,3035.3,3.21274135]
[1763406063582,0.00402589,3036.0,3035.7,3.2078]
[1763406064278,0.00402589,3036.0,3035.3,3.21274135]
[1763406064468,0.6284,3035.7,3035.3,3.21274135]
[1763406064876,3.2078,3035.4,3035.3,0.00494135]
[1763406065084,3.2078,3035.4,3035.2,0.00340982]
[1763406065389,0.6284,3034.8,3033.2,3.2078]
[1763406065679,0.6284,3033.9,3033.2,3.2078]
[1763406066281,0.63331282,3033.9,3033.2,0.0078771]
[1763406066793,3.2078,3033.6,3033.2,0.0078771]
[1763406066976,3.21155382,3033.6,3033.2,0.0078771]
[1763406067174,0.6284,3033.0,3031.9,3.2078]
[1763406067474,3.8362,3033.0,3031.9,3.2078]
[1763406067870,3.8362,3033.0,3032.3,3.2078]
[1763406068074,3.84114135,3033.0,3032.3,0.00736249]
[1763406068778,0.63334135,3033.0,3032.4,3.2078]
[1763406069171,3.84114135,3033.0,3032.4,3.2078]
[1763406069571,0.63334135,3033.0,3032.4,3.2078]
[1763406069975,0.00494135,3033.0,3032.9,3.2078]
[1763406071181,0.00375382,3033.6,3032.9,3.2078]
[1763406071384,0.6284,3034.8,3033.5,3.2078]
[1763406071681,3.2078,3035.9,3034.7,3.2078]
[1763406071880,1.78768401,3037.5,3035.6,3.2078]
[1763406071881,3.2078,3036.3,3035.6,3.2078]
[1763406072074,0.6284,3037.5,3035.6,3.2078]
[1763406072075,3.2078,3036.5,3035.6,3.2078]
[1763406072273,0.00234039,3035.7,3035.6,3.21021413]
[1763406072477,0.00491282,3036.0,3035.6,3.21021413]
[1763406073180,0.63331282,3036.0,3035.6,3.21021413]
[1763406073686,0.63725022,3036.0,3035.6,3.21021413]
[1763406074180,3.8362,3038.4,3035.7,6.88915903]
[1763406074380,3.8362,3038.4,3037.9,3.2078]
[1763406074598,0.6284,3038.4,3037.4,3.2078]
[1763406074879,0.6284,3038.4,3037.9,3.2078]
[1763406075080,0.63094828,3038.4,3038.3,3.2078]
[1763406075287,3.83874828,3038.4,3037.9,0.00362892]
[1763406075481,3.2078,3038.0,3037.8,0.00494135]
[1763406075681,3.2078,3038.0,3037.3,3.2078]
[1763406075885,3.83874828,3038.4,3037.3,3.2078]
[1763406076186,3.2078,3038.0,3037.3,3.2078]
[1763406076385,3.83874828,3038.4,3037.3,3.2078]
[1763406076575,3.83874828,3038.4,3037.5,0.00494135]
[1763406076785,3.2078,3037.9,3037.5,0.00494135]
[1763406076974,3.2078,3037.9,3037.3,0.00322561]
[1763406077179,0.6284,3037.0,3036.3,3.2078]
[1763406077684,0.6284,3037.0,3034.8,40.8]
[1763406077685,0.00494134,3038.2,3037.2,3.2078]
[1763406077978,0.00494135,3038.0,3037.4,0.00494135]
[1763406078178,0.00494135,3038.0,3037.6,3.2078]
[1763406078888,3.2078,3037.8,3037.4,0.00857791]
[1763406079380,9.2078,3037.8,3037.4,0.00857791]
[1763406079582,6.0,3037.7,3037.4,0.00857791]
[1763406079891,3.2078,3037.8,3037.4,0.00857791]
[1763406080184,0.00494135,3038.0,3037.4,0.00857791]
[1763406080391,0.00494135,3038.0,3037.7,0.53377]
[1763406080583,0.00494135,3038.0,3037.8,0.53375]
[1763406081490,0.00494135,3038.0,3037.7,3.2078]
[1763406081885,0.00254828,3038.4,3037.7,3.2078]
[1763406082089,0.00254828,3038.4,3038.2,0.53367]
[1763406082282,0.00254828,3038.4,3038.2,0.53368]
[1763406082479,0.00254828,3038.4,3038.2,3.74148]
[1763406082683,0.00254828,3038.4,3037.4,0.00857791]
[1763406082684,0.00254828,3038.4,3037.9,3.2078]
[1763406082893,3.2078,3038.0,3037.4,0.00857791]
[1763406083086,3.2078,3037.6,3037.4,0.00857791]
[1763406084480,0.00254828,3038.4,3037.6,0.53379]
[1763406084481,3.2078,3038.2,3037.6,0.53379]
[1763406084792,3.2078,3038.2,3037.4,0.00857791]
[1763406084980,3.2078,3038.2,3037.4,3.21637791]
[1763406085385,3.2078,3037.8,3037.4,0.00857791]
[1763406087284,3.2078,3037.8,3037.4,0.54238791]
[1763406087593,0.00254828,3038.4,3037.5,0.53379]
[1763406087594,3.2078,3038.2,3037.5,0.53379]
[1763406087795,3.2078,3038.2,3037.6,0.53378]
[1763406087999,3.2078,3038.2,3037.8,0.53376]
[1763406088290,3.2078,3038.2,3037.4,0.00857791]
[1763406088291,3.2078,3038.2,3037.5,4.39761]
[1763406088495,3.2078,3037.8,3037.4,0.00857791]
[1763406088800,3.2078,3038.2,3037.6,3.2078]
[1763406088995,3.2078,3038.2,3037.7,0.53377]
[1763406089308,3.2078,3038.2,3037.7,3.2078]
[1763406089495,0.00254828,3038.4,3037.7,3.2078]
[1763406089696,0.00254828,3038.4,3038.3,0.53367]
[1763406091597,0.00254828,3038.4,3038.2,3.2078]
[1763406091796,0.00254828,3038.4,3037.8,3.2078]
[1763406093197,0.00254828,3038.4,3038.3,0.53367]
[1763406093401,0.00254828,3038.4,3038.2,3.2078]
[1763406093597,0.00254828,3038.4,3038.3,0.53367]
[1763406093794,0.00254828,3038.4,3038.2,3.2078]
[1763406094802,0.00254828,3038.4,3038.3,0.53367]
[1763406095312,0.00254828,3038.4,3037.8,3.2078]
[1763406095906,0.00254828,3038.4,3037.5,0.5338]
[1763406096502,0.00254828,3038.4,3037.9,3.2078]
[1763406097310,0.00254828,3038.4,3037.5,3.2078]
[1763406097699,0.00254828,3038.4,3037.5,3.74161]
[1763406098202,0.00254828,3038.4,3037.5,3.8638]
[1763406098407,3.2078,3038.1,3037.6,0.53379]
[1763406098708,3.2078,3038.1,3037.5,3.8638]
[1763406099001,3.2078,3038.1,3037.4,0.00857791]
[1763406099002,3.2078,3038.1,3037.7,0.53377]
[1763406099201,0.00254828,3038.4,3037.6,0.53378]
[1763406099402,3.2078,3037.8,3037.4,0.00857791]
[1763406099903,0.45594828,3038.4,3037.4,0.54239791]
[1763406100111,3.2078,3038.2,3037.5,0.53381]
[1763406100311,3.2078,3038.2,3037.6,0.4535]
[1763406100601,1.15928401,3039.7,3037.9,3.2078]
[1763406100805,3.2078,3039.8,3039.1,3.2078]
[1763406100998,0.6284,3040.0,3037.9,1.18485756]
[1763406100999,3.2078,3039.4,3038.7,3.7414]
[1763406101205,3.2078,3039.4,3038.7,3.2078]
[1763406101397,0.6888,3039.3,3038.7,3.21274135]
[1763406101604,3.2078,3039.0,3038.7,0.00494135]
[1763406101795,3.2078,3039.0,3038.7,4.135e-05]
[1763406102004,9.2078,3039.0,3038.7,4.135e-05]
[1763406102206,4.36708401,3039.0,3038.7,4.135e-05]
[1763406102507,6.0,3038.9,3038.7,4.135e-05]
[1763406102902,1.15928401,3038.9,3038.7,4.135e-05]
[1763406103102,1.15928401,3038.8,3038.7,4.135e-05]
[1763406103303,6.0,3038.8,3038.7,4.135e-05]
[1763406103603,6.0,3038.8,3037.4,0.00363656]
[1763406103604,0.6888,3037.5,3037.4,0.00363656]
[1763406106108,0.6888,3037.5,3037.4,3.656e-05]
[1763406106305,0.6888,3037.5,3037.3,3.2078]
[1763406106505,0.6888,3037.5,3037.1,0.00494135]
[1763406106810,3.2078,3037.2,3037.1,0.00494135]
[1763406107115,0.69374135,3037.5,3037.1,0.00494135]
[1763406107413,0.69649952,3037.5,3037.1,0.00895201]
[1763406107613,3.2078,3037.2,3037.1,0.00895201]
[1763406107803,3.2078,3037.2,3037.1,0.00401066]
[1763406107998,10.37714298,3037.2,3036.1,1.23723]
[1763406108214,3.2078,3036.5,3036.1,1.23723]
[1763406108716,10.37714298,3036.5,3036.1,3e-05]
[1763406108904,1.16934298,3036.3,3036.0,4.906e-05]
[1763406109101,1.16934298,3036.3,3035.1,3.2078]
[1763406109102,0.5026,3036.0,3035.1,3.2078]
[1763406109309,3.2078,3036.1,3035.2,0.53421]
[1763406109712,3.2078,3036.1,3035.1,3.74203]
[1763406110016,0.00494135,3035.9,3035.3,0.00494135]
[1763406110218,3.2078,3035.6,3035.3,0.00494135]
[1763406110715,3.2078,3035.6,3035.4,0.53416]
[1763406110909,0.00494135,3035.9,3035.4,0.53416]
[1763406111414,0.00494135,3035.9,3035.3,0.00494135]
[1763406111619,0.00494135,3035.9,3035.3,0.53912135]
[1763406111815,0.00494135,3035.9,3035.3,0.00494135]
[1763406112125,3.2078,3035.7,3035.3,0.00494135]
[1763406112621,3.2078,3035.7,3035.3,0.53913135]
[1763406112913,0.00494135,3035.9,3035.3,0.53913135]
[1763406112914,0.00494135,3035.9,3035.3,0.00494135]
[1763406113513,0.00494135,3035.9,3035.3,0.53913135]
[1763406113713,0.00494135,3035.9,3035.3,0.00494135]
[1763406114214,0.00494135,3035.9,3035.3,0.53913135]
[1763406114611,0.00494135,3035.9,3035.5,0.53416]
[1763406115120,3.2078,3035.7,3035.3,0.53912135]
[1763406115622,3.2078,3035.7,3035.4,0.53417]
[1763406115817,0.00494135,3035.9,3035.3,0.00494135]
[1763406116025,3.2078,3035.7,3035.3,0.00494135]
[1763406117916,3.2078,3035.7,3035.1,0.00308847]
[1763406118219,3.8205,3035.2,3033.9,3.2078]
[1763406118426,3.8205,3035.2,3032.8,0.656]
[1763406118427,3.2078,3034.3,3033.4,3.2078]
[1763406118814,3.2078,3033.9,3033.0,3.2078]
[1763406119014,3.21060259,3033.9,3033.7,0.03707551]
[1763406120335,3.21060259,3033.9,3033.5,0.00494135]
[1763406120632,0.3939,3033.6,3032.3,3.74252]
[1763406120837,3.2078,3032.8,3032.3,3.2078]
[1763406121228,0.3939,3033.6,3031.7,0.6661]
[1763406121229,3.2078,3032.4,3031.7,1.20093]
[1763406121430,3.2078,3032.0,3031.7,0.00236712]
[1763406121733,3.8205,3032.0,3031.7,8.47e-06]
[1763406122232,6.0,3031.9,3031.7,8.47e-06]
[1763406122632,6.0,3031.9,3029.9,3.2078]
[1763406122633,3.8205,3032.0,3030.6,0.53502]
[1763406122833,3.2078,3031.1,3030.4,0.6661]
[1763406123036,3.2078,3031.1,3030.4,3.8739]
[1763406123234,3.2078,3031.1,3030.5,0.53504]
[1763406123441,3.2078,3031.1,3030.4,3.8739]
[1763406123643,3.2078,3030.5,3030.4,0.00718192]
[1763406124541,0.00494976,3030.8,3030.5,0.53504]
[1763406124742,0.00494976,3030.8,3030.4,3.21498192]
[1763406124938,3.2078,3030.7,3030.4,0.00718192]
[1763406125143,3.2078,3030.7,3029.6,0.6661]
[1763406125144,3.2078,3030.7,3029.1,3.2078]
[1763406125345,3.2078,3029.8,3029.1,3.2078]
[1763406126245,3.2078,3029.8,3029.3,0.53524]
[1763406126435,3.2078,3029.8,3029.1,3.21207454]
[1763406126436,3.2078,3030.3,3029.5,0.53522]
[1763406126846,3.2078,3030.3,3029.5,3.74302]
[1763406127344,3.2078,3030.3,3029.6,0.6661]
[1763406127543,3.2078,3030.7,3030.3,0.53507]
[1763406127849,0.00494976,3030.8,3029.9,3.2078]
[1763406128061,0.00494976,3030.8,3030.4,0.6661]
[1763406128343,5.83532635,3032.5,3030.7,3.2078]
[1763406128536,5.83532635,3032.5,3031.7,3.2078]
[1763406128537,3.2078,3032.5,3031.7,3.2078]
[1763406128935,3.2078,3032.5,3031.4,3.2078]
[1763406129145,0.00494976,3032.3,3031.8,3.2078]
[1763406130834,0.6918,3032.1,3031.6,0.00494976]
[1763406131746,3.2078,3032.2,3031.7,3.2078]
[1763406131942,3.2078,3032.2,3032.1,0.53476]
[1763406132144,0.00494976,3032.3,3032.1,3.74256]
[1763406132845,0.00282525,3032.5,3032.4,0.53471]
[1763406133145,0.5982,3034.4,3032.2,6.0]
[1763406133146,3.2078,3033.9,3032.2,6.0]
[1763406133343,3.2078,3033.9,3033.2,3.2078]
[1763406133761,3.2078,3033.5,3032.8,3.2078]
[1763406134050,0.00885016,3033.5,3032.8,3.2078]
[1763406134235,0.00885016,3033.5,3032.8,3.74242]
[1763406134439,0.00885016,3033.5,3032.9,0.53462]
[1763406134646,0.00885016,3033.5,3032.8,3.2078]
[1763406134846,3.21665016,3033.5,3032.8,3.2078]
[1763406135243,3.8996,3033.0,3032.3,3.2078]
[1763406136943,0.6918,3033.0,3032.3,3.2078]
[1763406137143,3.2078,3032.9,3032.3,3.2078]
[1763406137945,3.2078,3032.9,3031.9,3.2078]
[1763406138145,3.2078,3032.5,3031.9,3.2078]
[1763406138353,0.6436,3032.1,3031.9,3.2078]
[1763406138953,3.2078,3032.5,3031.9,3.2078]
[1763406139144,0.6918,3033.0,3032.4,3.2078]
[1763406141948,0.6918,3033.0,3032.0,3.2078]
[1763406142358,3.2078,3032.7,3032.0,3.2078]
[1763406142645,3.2078,3032.7,3031.6,3.21274976]
[1763406142859,3.2078,3032.7,3032.0,3.2078]
[1763406143048,3.2078,3032.7,3031.6,3.21274976]
[1763406143654,3.2078,3032.7,3031.6,3.74758976]
[1763406143950,3.2078,3032.7,3031.6,3.21274976]
[1763406147058,0.6112,3032.0,3031.6,3.21274976]
[1763406147262,3.819,3032.0,3031.6,0.00494976]
[1763406148358,3.2078,3032.0,3031.6,0.00494976]
[1763406148855,3.819,3032.0,3031.6,0.00494976]
[1763406149157,3.819,3032.0,3031.4,0.00232125]
[1763406149347,3.819,3032.0,3030.3,3.2078]
[1763406149348,0.6112,3031.0,3030.3,3.2078]
[1763406149547,3.2078,3030.7,3029.9,3.2078]
[1763406149954,3.2078,3030.7,3029.9,3.74295]
[1763406150252,3.2078,3030.1,3030.0,0.00494976]
[1763406150454,3.2103812,3030.1,3029.3,3.2078]
[1763406151050,0.6112,3029.6,3028.1,3.2078]
[1763406151360,3.2078,3029.1,3028.1,3.21161456]
[1763406151655,0.6112,3028.0,3027.1,3.2078]
[1763406152159,0.6112,3028.0,3027.5,3.2078]
[1763406152657,3.2078,3027.7,3027.5,0.003333]
[1763406152953,3.2078,3027.7,3027.5,3.3e-05]
[1763406152954,3.21053897,3027.7,3027.5,3.3e-05]
[1763406153750,0.00273897,3027.7,3027.5,3.3e-05]
[1763406154054,0.00273897,3027.7,3027.5,6.000033]
[1763406155257,3.2078,3027.6,3027.5,3.3e-05]
[1763406155959,0.00273897,3027.7,3027.5,3.3e-05]
[1763406157869,3.819,3028.8,3028.1,0.53545]
[1763406158157,3.2078,3029.2,3028.2,3.2078]
[1763406158358,3.2078,3029.2,3028.3,3.2078]
[1763406158765,3.2078,3029.2,3028.7,3.74315]
[1763406158959,0.00880716,3028.9,3028.7,3.74315]
[1763406159160,0.00880716,3028.9,3028.1,3.2078]
[1763406159360,0.6112,3028.8,3028.5,3.2078]
[1763406159658,0.6112,3028.8,3027.5,3.3e-05]
[1763406159659,3.2078,3028.7,3028.0,3.2078]
[1763406159956,0.6112,3028.8,3027.5,3.207833]
[1763406159957,3.2078,3028.3,3027.5,3.207833]
[1763406160158,3.2078,3028.3,3027.5,3.743403]
[1763406160358,3.2078,3028.3,3027.5,3.207833]
[1763406160861,3.2078,3028.3,3027.6,0.53555]
[1763406161064,3.2078,3028.3,3027.7,0.53554]
[1763406161263,3.2078,3028.7,3028.0,0.53548]
[1763406161462,3.2078,3028.7,3027.9,3.7433]
[1763406161855,3.2078,3028.7,3027.9,3.2078]
[1763406162060,0.00880716,3028.9,3028.4,3.2078]
[1763406162364,0.6112,3028.8,3028.4,3.2078]
[1763406162563,3.2078,3028.6,3028.0,3.2078]
[1763406163268,3.2078,3028.6,3027.6,3.2078]
[1763406163667,3.2078,3028.2,3027.6,3.2078]
[1763406163866,0.6112,3028.0,3027.6,3.2078]
[1763406164468,3.2078,3028.2,3027.6,3.2078]
[1763406164863,0.6112,3028.8,3027.5,3.3e-05]
[1763406164864,3.2078,3027.8,3027.5,3.3e-05]
[1763406165873,3.2078,3028.7,3027.6,3.74335]
[1763406166067,3.2078,3028.7,3027.9,0.53549]
[1763406166267,3.2078,3028.7,3027.6,3.2078]
[1763406166268,3.2078,3028.7,3028.0,0.53548]
[1763406166470,0.6112,3028.8,3027.5,3.3e-05]
[1763406166765,3.2078,3028.7,3028.2,3.2078]
[1763406166958,0.00880716,3028.9,3028.2,3.2078]
[1763406167358,3.819,3028.8,3027.8,3.2078]
[1763406167569,3.2078,3028.4,3027.8,3.2078]
[1763406167769,3.2078,3028.4,3027.5,0.535603]
[1763406168081,3.819,3028.0,3027.5,3.3e-05]
[1763406168271,0.6112,3028.0,3027.5,3.3e-05]
[1763406168470,3.2078,3028.4,3027.9,3.2078]
[1763406169269,3.2078,3028.4,3027.5,0.535603]
[1763406169468,3.2078,3028.4,3027.8,3.2078]
[1763406169664,3.2078,3028.4,3027.9,0.5355]
[1763406169866,3.2078,3028.4,3028.0,0.53548]
[1763406170070,0.00880716,3028.9,3028.3,0.53543]
[1763406170379,0.00880716,3028.9,3028.6,3.2078]
[1763406173371,0.6112,3028.8,3028.6,3.2078]
[1763406173964,0.6112,3028.8,3028.2,3.2078]
[1763406174171,3.819,3028.8,3027.8,3.74331]
[1763406174573,3.819,3028.8,3027.9,0.5355]
[1763406174868,3.819,3028.8,3027.8,3.74332]
[1763406175070,3.819,3028.8,3027.8,3.2078]
[1763406175589,3.2078,3028.4,3027.8,3.2078]
[1763406175784,3.819,3028.8,3027.8,3.2078]
[1763406176273,3.819,3028.8,3027.8,3.74332]
[1763406177069,3.819,3028.8,3028.1,0.53546]
[1763406177279,3.819,3028.8,3027.9,0.53549]
[1763406177580,3.819,3028.8,3027.8,3.2078]
[1763406177775,3.819,3028.8,3028.3,0.53542]
[1763406177981,3.819,3028.8,3028.2,3.2078]
[1763406180576,3.819,3028.8,3027.7,0.53552]
[1763406180577,3.2078,3028.4,3027.7,3.2078]
[1763406180781,1.16934298,3028.6,3027.7,3.2078]
[1763406180980,5.57301447,3028.8,3027.7,3.2078]
[1763406180981,1.16934298,3028.7,3027.7,3.2078]
[1763406181180,3.2078,3028.4,3027.7,3.2078]
[1763406181981,3.2078,3028.0,3027.5,3.3e-05]
[1763406182571,4.37714298,3028.0,3027.5,3.3e-05]
[1763406183585,1.16934298,3027.9,3027.5,3.3e-05]